bitfinex/quotes_SOLUSD_20220211
["timestamp","ask_amount","ask_price","bid_price","bid_amount"]
[1644559977737,37.7246427,104.57,104.52,14.3561]
[1644559978335,37.7246427,104.57,104.52,53.65564689]
[1644559978639,71.01851987,104.61,104.52,53.65564689]
[1644559978936,75.80051987,104.61,104.52,53.90564689]
[1644559979537,45.86178731,104.6,104.52,53.90564689]
[1644559979735,14.3542,104.59,104.52,14.6061]
[1644559980835,46.56602759,104.58,104.52,14.6061]
[1644559981838,14.39721987,104.59,104.53,0.91932997]
[1644559982039,4.82501987,104.6,104.53,15.27312997]
[1644559982238,13.8529,104.6,104.53,21.52312997]
[1644559982449,23.16611987,104.61,104.53,35.42312997]
[1644559982640,23.16611987,104.61,104.53,21.52312997]
[1644559982838,0.04301987,104.61,104.53,45.43502997]
[1644559983040,42.00893628,104.62,104.53,45.43502997]
[1644559983238,42.00893628,104.62,104.53,59.33502997]
[1644559983840,56.35923628,104.62,104.53,59.33502997]
[1644559984239,56.35923628,104.62,104.54,4.781]
[1644559984439,56.35923628,104.62,104.56,14.3493]
[1644559985140,42.00893628,104.62,104.57,8.69523955]
[1644559985439,37.6309,104.63,104.57,8.69523955]
[1644559985639,0.04301987,104.64,104.57,23.29373955]
[1644559985839,29.28631987,104.65,104.57,23.29373955]
[1644559986063,24.50531987,104.65,104.57,23.29373955]
[1644559986240,45.00335972,104.64,104.57,34.38473955]
[1644559986442,45.04637959,104.64,104.57,25.4395]
[1644559986843,49.82537959,104.64,104.57,11.091]
[1644559987843,64.17307959,104.64,104.57,11.091]
[1644559988045,64.17307959,104.64,104.56,14.3501]
[1644559989446,66.55725938,104.64,104.55,37.0767]
[1644559990650,66.55725938,104.64,104.52,61.7381]
[1644559990651,66.55725938,104.64,104.54,14.3529]
[1644559990849,2.75405474,104.63,104.51,36.9978]
[1644559991049,14.355,104.6,104.51,47.6884]
[1644559991251,4.782,104.59,104.51,47.6884]
[1644559991653,4.782,104.59,104.52,31.35053926]
[1644559991852,4.782,104.59,104.52,45.95613926]
[1644559992651,42.91485674,104.59,104.52,45.95613926]
[1644559992951,52.48745674,104.59,104.52,51.70613926]
[1644559993351,52.48745674,104.59,104.52,45.95613926]
[1644559993572,52.48745674,104.59,104.52,45.70613926]
[1644559994373,52.48745674,104.59,104.52,14.3556]
[1644559996780,52.48745674,104.59,104.52,14.6056]
[1644559997376,52.48745674,104.59,104.52,14.3556]
[1644559997977,52.48745674,104.59,104.52,14.6056]
[1644559998783,52.48745674,104.59,104.52,20.6056]
[1644559998980,52.48745674,104.59,104.52,14.6056]
[1644560001291,52.48745674,104.59,104.52,20.6056]
[1644560002990,52.48745674,104.59,104.52,14.6056]
[1644560004294,52.48745674,104.59,104.53,1.42673318]
[1644560004492,52.48745674,104.59,104.53,15.78063318]
[1644560004692,52.48745674,104.59,104.53,14.3539]
[1644560010797,52.48745674,104.59,104.52,14.3557]
[1644560010997,19.1383,104.58,104.52,14.3557]
[1644560011196,19.1383,104.58,104.51,53.9384]
[1644560011197,19.1383,104.58,104.51,47.6884]
[1644560011596,34.48187123,104.57,104.51,47.6884]
[1644560012800,48.83977123,104.57,104.51,62.0454]
[1644560022534,48.83977123,104.57,104.51,47.6884]
[1644560022733,48.83977123,104.57,104.5,0.024]
[1644560022932,14.3618,104.55,104.5,0.024]
[1644560023135,14.3618,104.55,104.48,0.024]
[1644560023335,4.783,104.56,104.48,0.024]
[1644560023336,4.784,104.54,104.48,0.024]
[1644560023534,9.38517979,104.56,104.48,0.024]
[1644560023535,21.06717979,104.55,104.48,0.024]
[1644560023738,21.06717979,104.55,104.46,0.024]
[1644560023739,35.14622805,104.54,104.46,0.024]
[1644560024034,46.64290416,104.52,104.46,0.024]
[1644560024235,46.02780383,104.5,104.46,0.024]
[1644560024436,46.02780383,104.5,104.45,61.6104]
[1644560025537,46.02780383,104.5,104.45,47.2456]
[1644560027244,60.39420383,104.5,104.44,14.39]
[1644560027444,60.39420383,104.5,104.44,14.616]
[1644560031347,60.39420383,104.5,104.43,0.024]
[1644560031548,60.39420383,104.5,104.43,14.3674]
[1644560031747,60.39420383,104.5,104.43,14.6414]
[1644560034550,4.785,104.49,104.43,14.6414]
[1644560034847,38.12478798,104.48,104.43,14.6174]
[1644560035247,38.12478798,104.48,104.43,14.3674]
[1644560035448,38.12478798,104.48,104.42,0.024]
[1644560035648,38.12478798,104.48,104.41,0.024]
[1644560035649,4.785,104.47,104.41,0.024]
[1644560035854,48.16521309,104.46,104.41,0.024]
[1644560036049,48.16521309,104.46,104.4,4.785]
[1644560036250,39.21817938,104.44,104.4,4.785]
[1644560036447,39.21817938,104.44,104.41,0.024]
[1644560036648,39.21817938,104.44,104.4,4.785]
[1644560037251,4.787,104.48,104.4,4.785]
[1644560037448,4.787,104.48,104.4,0.024]
[1644560037649,14.3727,104.46,104.4,0.024]
[1644560037848,4.787,104.48,104.39,36.75660978]
[1644560038050,22.941,104.49,104.4,4.812]
[1644560038249,22.941,104.49,104.41,30.41294668]
[1644560038651,19.1554,104.5,104.42,14.3681]
[1644560038851,14.3674,104.5,104.42,56.4896]
[1644560039754,4.785,104.51,104.45,14.3636]
[1644560039949,72.08948153,104.53,104.46,30.33997974]
[1644560040150,49.55148153,104.53,104.46,30.33997974]
[1644560040351,49.55148153,104.53,104.46,30.36397974]
[1644560040952,4.785,104.53,104.47,14.3624]
[1644560041159,14.3626,104.54,104.47,14.3624]
[1644560041353,14.3626,104.54,104.47,14.6364]
[1644560041553,14.3626,104.54,104.47,20.6364]
[1644560041757,14.3626,104.54,104.47,20.3864]
[1644560041954,39.13509756,104.54,104.47,14.3864]
[1644560042156,41.52953748,104.54,104.47,0.024]
[1644560042357,4.784,104.53,104.47,0.024]
[1644560042556,4.784,104.53,104.45,14.3885]
[1644560042756,2.39443992,104.52,104.45,14.3885]
[1644560042956,4.785,104.51,104.45,14.3885]
[1644560043155,36.66799569,104.5,104.45,14.3645]
[1644560043957,19.1511,104.51,104.45,14.3645]
[1644560044360,14.3661,104.51,104.45,14.3645]
[1644560045060,14.3661,104.51,104.46,5.62263557]
[1644560045564,14.3661,104.51,104.45,14.3885]
[1644560045861,19.1511,104.51,104.45,14.3645]
[1644560046484,42.88658159,104.5,104.45,14.3645]
[1644560047883,42.88658159,104.5,104.45,16.91752486]
[1644560048283,19.1511,104.51,104.45,17.16752486]
[1644560048485,14.3661,104.51,104.45,16.91752486]
[1644560051388,58.18579963,104.52,104.45,16.91752486]
[1644560051588,58.18579963,104.52,104.45,17.19152486]
[1644560051788,4.785,104.53,104.45,17.19152486]
[1644560051990,29.28886913,104.54,104.45,17.19152486]
[1644560052191,24.50386913,104.54,104.46,0.024]
[1644560052390,24.50386913,104.54,104.47,14.3621]
[1644560052594,24.50386913,104.54,104.47,14.3861]
[1644560052990,43.39346914,104.53,104.47,52.12006642]
[1644560053190,43.39346914,104.53,104.47,14.3861]
[1644560053693,57.75636914,104.53,104.47,14.3861]
[1644560054194,57.75636914,104.53,104.47,56.45631662]
[1644560054395,62.54036914,104.53,104.47,56.45631662]
[1644560054899,62.54036914,104.53,104.47,14.3861]
[1644560055797,14.3629,104.53,104.47,14.6361]
[1644560056297,37.5121,104.54,104.47,14.6361]
[1644560056495,42.2961,104.54,104.47,14.6361]
[1644560056698,37.59417218,104.53,104.47,46.94117575]
[1644560058399,42.2961,104.54,104.47,46.69117575]
[1644560058600,14.3614,104.54,104.47,46.94117575]
[1644560058801,1.35316913,104.56,104.47,52.94117575]
[1644560059000,1.35316913,104.56,104.5,14.3571]
[1644560059299,76.15311987,104.6,104.5,24.6361]
[1644560059300,1.35316913,104.57,104.5,24.6361]
[1644560059499,1.35316913,104.57,104.51,23.1328]
[1644560059803,1.35316913,104.58,104.51,23.3828]
[1644560060001,14.3554,104.59,104.51,23.3828]
[1644560060002,15.70856913,104.59,104.51,23.3828]
[1644560060298,20.49056913,104.59,104.51,23.3828]
[1644560060502,6.13516913,104.59,104.52,32.30507575]
[1644560060699,1.396189,104.6,104.53,14.3551]
[1644560060901,1.396189,104.61,104.53,23.1791]
[1644560061100,0.04301987,104.61,104.53,31.56141989]
[1644560061301,1.35316913,104.62,104.53,31.56141989]
[1644560061500,0.04301987,104.61,104.54,13.9]
[1644560061700,35.27444538,104.62,104.56,14.3485]
[1644560061900,41.40861451,104.62,104.54,15.76998071]
[1644560062099,41.40861451,104.62,104.55,6.0]
[1644560062302,41.36559464,104.62,104.55,6.0]
[1644560062599,41.36559464,104.62,104.56,30.29977659]
[1644560062800,49.58372551,104.62,104.53,43.4232]
[1644560063005,6.13316913,104.61,104.53,19.1334]
[1644560063200,6.176189,104.61,104.53,19.1334]
[1644560063400,1.35316913,104.6,104.53,19.1334]
[1644560063702,4.781,104.59,104.53,60.50432063]
[1644560064504,42.67338013,104.58,104.53,19.1334]
[1644560065004,19.1359,104.6,104.53,19.1334]
[1644560066006,37.46755605,104.59,104.53,55.60915987]
[1644560066408,37.46755605,104.59,104.53,19.1334]
[1644560068011,19.1359,104.6,104.53,19.1334]
[1644560068214,19.1359,104.6,104.53,14.3534]
[1644560068911,19.1359,104.6,104.54,29.65479813]
[1644560069112,19.1359,104.6,104.54,44.00799813]
[1644560069414,14.3549,104.6,104.54,44.00799813]
[1644560069611,47.01762156,104.61,104.54,44.00799813]
[1644560069612,14.39551987,104.61,104.54,44.00799813]
[1644560069812,6.177189,104.62,104.54,44.25799813]
[1644560070014,4.82401987,104.62,104.54,44.25799813]
[1644560070212,0.04301987,104.62,104.54,49.03899813]
[1644560070614,35.19380576,104.62,104.54,49.03899813]
[1644560070817,49.54470576,104.62,104.54,48.78899813]
[1644560071215,50.89787489,104.62,104.54,48.78899813]
[1644560071413,50.89787489,104.62,104.54,19.1342]
[1644560071613,50.89787489,104.62,104.54,4.781]
[1644560072619,1.35316913,104.61,104.54,4.781]
[1644560072815,43.88600301,104.59,104.54,4.781]
[1644560073515,19.1355,104.6,104.54,8.56634306]
[1644560073716,14.3545,104.6,104.54,3.78534306]
[1644560074117,14.3545,104.6,104.53,37.0685]
[1644560074316,4.781,104.59,104.53,37.0685]
[1644560075216,42.36198589,104.59,104.53,37.0685]
[1644560075715,4.781,104.59,104.54,8.66880085]
[1644560075918,4.781,104.59,104.54,23.02270085]
[1644560076317,0.04301987,104.61,104.54,23.02270085]
[1644560076616,14.3524,104.61,104.54,23.27270085]
[1644560076816,58.30527745,104.61,104.54,23.02270085]
[1644560077620,58.30527745,104.61,104.54,23.27270085]
[1644560077820,58.30527745,104.61,104.54,23.02270085]
[1644560078921,58.30527745,104.61,104.54,23.27270085]
[1644560079119,58.30527745,104.61,104.54,23.02270085]
[1644560079720,58.30527745,104.61,104.54,14.3539]
[1644560079921,59.65844658,104.61,104.54,14.3539]
[1644560080120,4.781,104.6,104.54,14.3539]
[1644560080721,43.40503574,104.59,104.54,14.3539]
[1644560081323,15.748589,104.61,104.54,14.3539]
[1644560081521,1.35316913,104.61,104.54,14.3539]
[1644560081723,15.747389,104.62,104.54,14.6039]
[1644560082023,15.747389,104.62,104.54,14.3539]
[1644560082222,15.747389,104.62,104.54,37.8393]
[1644560082522,46.82295479,104.61,104.54,37.5893]
[1644560082722,61.17535479,104.61,104.54,37.5893]
[1644560082923,61.17535479,104.61,104.53,19.1364]
[1644560082924,4.781,104.6,104.53,19.1364]
[1644560083123,6.13416913,104.6,104.53,19.1364]
[1644560083523,6.13416913,104.6,104.53,4.781]
[1644560083725,48.39335319,104.59,104.53,4.781]
[1644560083925,14.3566,104.58,104.52,80.11460031]
[1644560084424,46.5008416,104.57,104.52,38.905]
[1644560084625,51.2828416,104.57,104.52,38.905]
[1644560086727,51.2828416,104.57,104.52,44.905]
[1644560087830,46.5008416,104.57,104.52,38.905]
[1644560089831,47.85401073,104.57,104.52,38.905]
[1644560093240,1.35316913,104.56,104.5,24.319]
[1644560093442,13.72916913,104.56,104.5,0.024]
[1644560093645,1.35316913,104.54,104.48,24.6818]
[1644560093846,1.35316913,104.54,104.48,24.6578]
[1644560094044,39.92989874,104.54,104.48,24.6578]
[1644560094855,52.93882961,104.54,104.48,39.0199]
[1644560096955,14.3621,104.54,104.49,1.95113522]
[1644560097156,14.36,104.55,104.49,1.95113522]
[1644560097355,1.35316913,104.56,104.5,14.3587]
[1644560098557,6.13616913,104.56,104.5,14.3587]
[1644560098757,6.13616913,104.56,104.51,36.66043055]
[1644560098758,20.49486913,104.56,104.51,36.66043055]
[1644560098959,1.35316913,104.56,104.52,14.3575]
[1644560099160,8.84988956,104.59,104.52,14.3575]
[1644560099360,8.84988956,104.59,104.52,38.2343]
[1644560099361,1.35316913,104.59,104.52,38.2343]
[1644560099558,1.35316913,104.59,104.52,37.9843]
[1644560099757,38.34342644,104.59,104.52,67.6522]
[1644560099957,36.99025731,104.59,104.52,62.6202]
[1644560100159,38.34342644,104.59,104.52,62.6202]
[1644560100560,1.35316913,104.58,104.52,62.6202]
[1644560100858,46.09415088,104.57,104.52,62.6202]
[1644560101762,47.44732001,104.57,104.52,62.6202]
[1644560101961,42.66532001,104.57,104.52,62.6202]
[1644560102159,42.66532001,104.57,104.52,14.3575]
[1644560102762,57.02222001,104.57,104.51,14.3584]
[1644560102960,4.782,104.56,104.51,14.3584]
[1644560103160,4.782,104.56,104.5,4.806]
[1644560103161,6.13516913,104.56,104.5,4.806]
[1644560103361,1.35316913,104.54,104.5,4.782]
[1644560103560,1.35316913,104.54,104.46,0.024]
[1644560103561,4.783,104.53,104.46,0.024]
[1644560103763,6.13616913,104.53,104.46,0.024]
[1644560103961,62.68495243,104.52,104.46,33.26483032]
[1644560104161,62.68495243,104.52,104.46,0.024]
[1644560104362,4.785,104.51,104.46,0.024]
[1644560104565,4.785,104.51,104.45,37.4398]
[1644560105163,4.785,104.51,104.45,71.87741415]
[1644560105366,48.32075243,104.52,104.45,71.87741415]
[1644560105569,4.785,104.51,104.45,71.90141415]
[1644560105765,14.3653,104.51,104.45,71.87741415]
[1644560105965,4.785,104.53,104.45,71.87741415]
[1644560106164,1.35316913,104.54,104.45,72.15141415]
[1644560106365,6.13716913,104.54,104.46,0.024]
[1644560106569,4.784,104.54,104.47,14.3628]
[1644560106764,4.784,104.54,104.47,14.3868]
[1644560106765,6.13716913,104.54,104.47,14.3868]
[1644560106964,45.11145288,104.53,104.47,22.02424231]
[1644560107365,45.11145288,104.53,104.47,22.00024231]
[1644560107566,14.3628,104.53,104.47,22.00024231]
[1644560107865,54.94886913,104.55,104.47,22.25024231]
[1644560108067,54.94886913,104.55,104.47,22.27424231]
[1644560108567,48.51095756,104.54,104.47,22.27424231]
[1644560108767,62.87215756,104.54,104.47,22.27424231]
[1644560108967,62.87215756,104.54,104.47,22.02424231]
[1644560109369,62.87215756,104.54,104.47,22.27424231]
[1644560109770,62.87215756,104.54,104.47,22.02424231]
[1644560110171,62.87215756,104.54,104.47,22.27424231]
[1644560110370,1.35316913,104.55,104.47,22.02424231]
[1644560110571,1.35316913,104.56,104.48,4.784]
[1644560110770,1.35316913,104.57,104.5,14.3579]
[1644560110974,1.35316913,104.57,104.5,21.8589]
[1644560111170,1.35316913,104.57,104.5,22.1329]
[1644560111371,46.4282449,104.57,104.51,32.89735587]
[1644560111571,14.3586,104.56,104.51,32.89735587]
[1644560112171,46.4282449,104.57,104.51,47.25485587]
[1644560112476,1.35316913,104.57,104.51,47.25485587]
[1644560112874,1.35316913,104.57,104.51,49.89929579]
[1644560113074,6.13716913,104.58,104.51,55.89929579]
[1644560113272,1.39677017,104.59,104.51,55.89929579]
[1644560113472,1.39677017,104.59,104.54,14.3522]
[1644560113473,1.35316913,104.59,104.54,14.3522]
[1644560113675,1.35316913,104.59,104.55,32.72151339]
[1644560113874,1.35316913,104.6,104.55,32.97151339]
[1644560114278,1.35316913,104.6,104.52,51.3123]
[1644560114477,1.35316913,104.58,104.52,60.8879]
[1644560114876,1.35316913,104.58,104.52,46.5313]
[1644560115277,40.77023741,104.57,104.52,46.5313]
[1644560116578,45.55223741,104.57,104.52,46.5313]
[1644560116979,45.55223741,104.57,104.52,60.8876]
[1644560117582,46.90540654,104.57,104.52,60.8876]
[1644560118380,42.12340654,104.57,104.52,60.8876]
[1644560118982,42.12340654,104.57,104.52,14.3563]
[1644560122387,42.12340654,104.57,104.5,0.024]
[1644560122586,56.48080654,104.57,104.51,14.3574]
[1644560122783,61.26280654,104.57,104.51,14.6074]
[1644560123186,1.35316913,104.56,104.51,14.6074]
[1644560123583,1.35316913,104.56,104.5,14.3827]
[1644560123785,1.35316913,104.56,104.5,19.4157]
[1644560123983,1.35316913,104.56,104.5,19.1657]
[1644560124185,42.12340654,104.57,104.5,19.4157]
[1644560124383,40.77023741,104.57,104.5,63.29380996]
[1644560124585,40.77023741,104.57,104.5,60.64937004]
[1644560124784,42.12340654,104.57,104.5,60.64937004]
[1644560124987,42.12340654,104.57,104.5,25.1657]
[1644560125192,4.783,104.56,104.5,14.3827]
[1644560125385,6.13616913,104.56,104.5,14.3827]
[1644560125787,20.49526913,104.56,104.5,0.024]
[1644560125988,34.48117009,104.55,104.5,0.024]
[1644560126187,34.48117009,104.55,104.49,39.1321]
[1644560126387,34.48117009,104.55,104.49,39.55604859]
[1644560127387,34.48117009,104.55,104.49,39.1321]
[1644560128190,58.98637009,104.55,104.49,39.1321]
[1644560128389,65.12253922,104.55,104.49,24.7721]
[1644560128608,60.33953922,104.55,104.49,24.7721]
[1644560129287,50.19453922,104.55,104.49,42.74695337]
[1644560129489,35.83433922,104.55,104.49,42.74695337]
[1644560129688,35.83433922,104.55,104.49,42.99695337]
[1644560129898,1.35316913,104.55,104.49,42.74695337]
[1644560130090,1.35316913,104.56,104.49,42.99695337]
[1644560130291,1.35316913,104.56,104.49,49.02095337]
[1644560130489,1.35316913,104.56,104.49,51.41539329]
[1644560130692,4.783,104.57,104.49,117.85139329]
[1644560130891,42.34125882,104.58,104.5,4.783]
[1644560131091,42.34125882,104.58,104.52,14.353]
[1644560131295,42.34125882,104.58,104.52,14.603]
[1644560131496,1.35316913,104.58,104.53,36.07947271]
[1644560131896,1.35316913,104.59,104.53,36.32947271]
[1644560132796,1.35316913,104.59,104.54,14.3524]
[1644560133202,1.35316913,104.59,104.54,14.6024]
[1644560133999,1.35316913,104.59,104.54,14.3524]
[1644560134199,1.35316913,104.6,104.54,19.3834]
[1644560134602,1.35316913,104.6,104.54,25.3834]
[1644560135806,1.35316913,104.6,104.54,20.6024]
[1644560137431,1.35316913,104.6,104.54,14.6024]
[1644560138027,6.13416913,104.6,104.54,14.6024]
[1644560139029,1.35316913,104.6,104.54,14.6024]
[1644560142131,1.35316913,104.6,104.54,14.3524]
[1644560142532,1.35316913,104.6,104.54,14.6024]
[1644560143933,6.13416913,104.6,104.54,14.6024]
[1644560145033,15.70596913,104.6,104.53,38.3783]
[1644560145234,0.04360104,104.61,104.53,14.3545]
[1644560145235,6.13416913,104.59,104.53,14.3545]
[1644560145434,1.35316913,104.59,104.5,2.39443992]
[1644560145635,1.35316913,104.57,104.49,0.024]
[1644560145835,6.13616913,104.56,104.49,0.024]
[1644560146036,62.95507321,104.55,104.49,0.024]
[1644560146238,4.783,104.54,104.47,0.024]
[1644560146435,17.12216913,104.54,104.47,0.024]
[1644560146837,17.12216913,104.54,104.45,0.024]
[1644560147138,14.3634,104.53,104.45,0.024]
[1644560147337,4.785,104.52,104.45,0.024]
[1644560147538,4.784,104.53,104.45,33.81213311]
[1644560147736,4.784,104.53,104.45,33.83613311]
[1644560148538,4.784,104.53,104.45,34.08613311]
[1644560148741,14.3656,104.51,104.45,34.08613311]
[1644560148939,14.3656,104.51,104.45,48.42683311]
[1644560149140,52.81117398,104.51,104.45,48.42683311]
[1644560149341,52.81117398,104.51,104.45,14.6147]
[1644560149540,52.81117398,104.51,104.45,0.25]
[1644560149741,52.81117398,104.51,104.44,50.11273992]
[1644560150544,52.81117398,104.51,104.44,49.86273992]
[1644560150742,57.59617398,104.51,104.44,17.03423992]
[1644560150942,57.59617398,104.51,104.44,0.024]
[1644560151946,52.81117398,104.51,104.44,0.024]
[1644560155847,4.785,104.5,104.44,0.024]
[1644560156047,14.3675,104.5,104.42,23.03643992]
[1644560156249,4.785,104.49,104.42,17.03643992]
[1644560156450,4.785,104.5,104.43,0.024]
[1644560156648,4.785,104.5,104.42,14.642]
[1644560157552,4.785,104.5,104.42,38.9725]
[1644560157750,14.3691,104.49,104.42,44.9725]
[1644560158152,14.3691,104.49,104.42,38.9725]
[1644560159352,14.3691,104.49,104.42,14.392]
[1644560159553,23.1441,104.49,104.42,0.024]
[1644560159755,4.785,104.48,104.4,0.024]
[1644560160055,14.373,104.47,104.4,0.024]
[1644560160251,14.373,104.47,104.38,24.6106]
[1644560160252,4.787,104.46,104.39,0.024]
[1644560160456,42.90257592,104.45,104.38,24.6346]
[1644560161057,42.90257592,104.45,104.38,0.024]
[1644560161453,42.90257592,104.45,104.36,0.25]
[1644560161654,47.69157592,104.45,104.36,0.25]
[1644560161852,62.06727592,104.45,104.35,87.08408862]
[1644560162252,42.90257592,104.45,104.37,14.374]
[1644560162454,42.90257592,104.45,104.37,59.8567066]
[1644560162653,42.90257592,104.45,104.37,68.50114652]
[1644560163152,42.90257592,104.45,104.37,82.38583514]
[1644560163452,4.789,104.48,104.37,77.59783514]
[1644560163655,4.788,104.49,104.41,14.368]
[1644560163851,4.788,104.49,104.41,14.618]
[1644560164052,4.788,104.49,104.42,2.39443992]
[1644560164254,36.76723512,104.48,104.42,2.39443992]
[1644560164451,36.76723512,104.48,104.41,15.74834986]
[1644560164652,36.76723512,104.48,104.41,1.38034986]
[1644560164852,36.76723512,104.48,104.41,1.63034986]
[1644560165452,36.76723512,104.48,104.41,4.02478978]
[1644560165653,36.76723512,104.48,104.41,3.77478978]
[1644560165852,4.787,104.47,104.41,1.63034986]
[1644560166253,4.787,104.47,104.4,38.9665]
[1644560166954,4.787,104.47,104.4,39.2165]
[1644560167352,4.787,104.47,104.41,39.07005377]
[1644560167754,4.787,104.47,104.41,39.32005377]
[1644560168453,36.76723512,104.48,104.41,39.32005377]
[1644560168853,36.76723512,104.48,104.41,53.43915377]
[1644560169054,36.76723512,104.48,104.41,56.08359369]
[1644560169253,36.76723512,104.48,104.41,62.08359369]
[1644560169457,36.76723512,104.48,104.41,61.83359369]
[1644560169654,36.76723512,104.48,104.4,29.3832]
[1644560169876,41.55423512,104.48,104.4,24.5962]
[1644560170253,41.55423512,104.48,104.4,30.8462]
[1644560170453,41.55423512,104.48,104.4,24.5962]
[1644560170656,41.55423512,104.48,104.4,78.44359676]
[1644560170855,36.76723512,104.48,104.4,83.23059676]
[1644560171055,36.76723512,104.48,104.4,89.23059676]
[1644560171459,36.76723512,104.48,104.4,91.62503668]
[1644560174462,23.5225,104.49,104.4,91.62503668]
[1644560174666,28.3095,104.49,104.4,102.66303668]
[1644560174865,4.787,104.49,104.4,130.4477253]
[1644560175164,1.35316913,104.51,104.4,188.0377253]
[1644560175764,1.35316913,104.52,104.4,211.74913373]
[1644560175964,1.35316913,104.52,104.4,213.09663297]
[1644560176264,1.35316913,104.52,104.4,325.45663297]
[1644560176665,35.98711051,104.52,104.4,325.45663297]
[1644560177267,1.35316913,104.52,104.4,325.45663297]
[1644560177497,1.35316913,104.53,104.41,1.37149924]
[1644560177697,1.35316913,104.53,104.44,14.3617]
[1644560177901,1.35316913,104.53,104.45,27.8524]
[1644560178300,45.10072756,104.52,104.45,30.7004597]
[1644560178501,51.23889669,104.52,104.45,26.1654597]
[1644560178700,46.45389669,104.52,104.45,25.9154597]
[1644560178901,46.45389669,104.52,104.45,40.5294597]
[1644560179301,46.45389669,104.52,104.45,40.2794597]
[1644560179804,45.10072756,104.52,104.45,40.5294597]
[1644560180002,1.35316913,104.53,104.45,40.5294597]
[1644560180202,1.35316913,104.53,104.45,46.5294597]
[1644560180901,1.35316913,104.53,104.45,40.5294597]
[1644560181306,1.35316913,104.53,104.45,46.5294597]
[1644560181803,1.35316913,104.53,104.45,40.5294597]
[1644560182004,1.35316913,104.53,104.45,46.5294597]
[1644560182605,1.35316913,104.53,104.45,46.2794597]
[1644560182806,1.35316913,104.53,104.45,40.2794597]
[1644560183007,1.35316913,104.52,104.45,40.2794597]
[1644560183209,1.35316913,104.52,104.46,0.024]
[1644560183608,4.785,104.51,104.46,0.024]
[1644560183808,6.13816913,104.51,104.44,0.024]
[1644560184008,1.35316913,104.51,104.44,0.024]
[1644560184209,6.13816913,104.5,104.44,0.024]
[1644560184410,6.13816913,104.5,104.42,30.3869]
[1644560184612,38.4321371,104.49,104.43,34.57525777]
[1644560184917,38.4321371,104.49,104.43,34.59925777]
[1644560185117,38.4321371,104.49,104.43,34.57525777]
[1644560185910,15.72166913,104.5,104.43,34.57525777]
[1644560186111,15.72166913,104.5,104.43,34.59925777]
[1644560186814,45.23836718,104.49,104.43,34.59925777]
[1644560187012,45.23836718,104.49,104.43,34.57525777]
[1644560187712,45.23836718,104.49,104.43,48.94155777]
[1644560188013,45.23836718,104.49,104.42,24.3869]
[1644560188212,45.23836718,104.49,104.42,30.6369]
[1644560188413,45.23836718,104.49,104.42,24.6369]
[1644560188915,45.23836718,104.49,104.42,39.0046]
[1644560189113,59.60706718,104.49,104.42,74.11177223]
[1644560190117,14.3687,104.49,104.42,74.11177223]
[1644560190316,19.1537,104.49,104.42,74.11177223]
[1644560190517,4.785,104.49,104.42,73.86177223]
[1644560190722,4.785,104.49,104.42,74.11177223]
[1644560190921,4.785,104.49,104.42,80.11177223]
[1644560191519,1.35316913,104.5,104.42,80.11177223]
[1644560192021,1.35316913,104.5,104.42,82.50621215]
[1644560192221,55.31952384,104.51,104.42,82.50621215]
[1644560192422,55.31952384,104.51,104.43,0.024]
[1644560192623,55.31952384,104.51,104.43,14.3897]
[1644560192821,55.31952384,104.51,104.43,14.6397]
[1644560193221,15.71916913,104.51,104.43,14.6397]
[1644560193421,1.35316913,104.51,104.43,23.03413992]
[1644560193622,45.17926913,104.52,104.43,36.93413992]
[1644560193922,26.02976913,104.52,104.44,4.785]
[1644560194122,1.35316913,104.52,104.45,14.3632]
[1644560194325,1.35316913,104.52,104.46,6.96788423]
[1644560194723,1.35316913,104.52,104.46,7.21788423]
[1644560195127,1.35316913,104.52,104.46,21.58048423]
[1644560195324,1.35316913,104.52,104.46,7.21788423]
[1644560195624,15.71756913,104.52,104.46,0.25]
[1644560195826,15.71756913,104.52,104.45,0.024]
[1644560196025,15.71756913,104.52,104.44,49.5198]
[1644560196426,15.71756913,104.52,104.45,32.35711278]
[1644560196625,1.35316913,104.52,104.45,46.74441278]
[1644560196826,1.35316913,104.52,104.45,46.99441278]
[1644560200534,1.35316913,104.52,104.45,55.3888527]